[Event "Late-Titled-Tuesday-Blitz-February-27-2024"]
[Site "Chess.com"]
[Date "2024.02.27"]
[Round "7"]
[White "maximnovik"]
[Black "ameetghasi100"]
[Result "0-1"]
[WhiteElo "2605"]
[BlackElo "2759"]
[TimeControl "180+1"]
[EndTime "15:16:59 PST"]
[Termination "ameetghasi100 won on time"]

1. e4 {[%clk 0:02:56.6]} 1... g6 {[%clk 0:02:59.9]} 2. d4 {[%clk 0:02:55.9]}
2... Bg7 {[%clk 0:03:00.8]} 3. Nf3 {[%clk 0:02:56.1]} 3... d6 {[%clk 0:03:00.4]}
4. Bd3 {[%clk 0:02:56.5]} 4... Nf6 {[%clk 0:03:00.9]} 5. O-O {[%clk 0:02:54.9]}
5... O-O {[%clk 0:03:01]} 6. h3 {[%clk 0:02:55]} 6... c5 {[%clk 0:03:01]} 7. c3
{[%clk 0:02:53.5]} 7... Nc6 {[%clk 0:03:01.2]} 8. Re1 {[%clk 0:02:50.4]} 8...
Nd7 {[%clk 0:02:59.8]} 9. Be3 {[%clk 0:02:47.7]} 9... Rb8 {[%clk 0:02:55.6]} 10.
Na3 {[%clk 0:02:43.7]} 10... a6 {[%clk 0:02:55.6]} 11. Nc2 {[%clk 0:02:33.8]}
11... b5 {[%clk 0:02:53.4]} 12. Qd2 {[%clk 0:02:31.2]} 12... b4 {[%clk
0:02:47.8]} 13. Bf1 {[%clk 0:02:17.1]} 13... a5 {[%clk 0:02:40.8]} 14. Rad1
{[%clk 0:01:54.1]} 14... Qc7 {[%clk 0:01:55.9]} 15. Bh6 {[%clk 0:01:50.8]} 15...
bxc3 {[%clk 0:01:54.4]} 16. bxc3 {[%clk 0:01:49.8]} 16... Rb2 {[%clk 0:01:50]}
17. Bxg7 {[%clk 0:01:48.8]} 17... Kxg7 {[%clk 0:01:49.3]} 18. Qc1 {[%clk
0:01:44.9]} 18... Qb8 {[%clk 0:01:48.4]} 19. Ne3 {[%clk 0:01:43.6]} 19... h5
{[%clk 0:01:31.4]} 20. Bc4 {[%clk 0:01:40.3]} 20... Rb7 {[%clk 0:01:11.5]} 21.
a4 {[%clk 0:01:31]} 21... Nb6 {[%clk 0:01:10.1]} 22. Bb5 {[%clk 0:01:30.3]}
22... Na7 {[%clk 0:01:07.8]} 23. dxc5 {[%clk 0:01:22.3]} 23... dxc5 {[%clk
0:01:06.8]} 24. c4 {[%clk 0:01:22.3]} 24... f6 {[%clk 0:00:49.9]} 25. Qc3 {[%clk
0:01:16.4]} 25... Nxb5 {[%clk 0:00:46.9]} 26. axb5 {[%clk 0:01:15.8]} 26... a4
{[%clk 0:00:47.3]} 27. e5 {[%clk 0:01:10.9]} 27... Ra7 {[%clk 0:00:39]} 28.
exf6+ {[%clk 0:01:03.7]} 28... exf6 {[%clk 0:00:39.9]} 29. Nd5 {[%clk
0:01:03.1]} 29... a3 {[%clk 0:00:35.1]} 30. Nxb6 {[%clk 0:00:47.8]} 30... Qxb6
{[%clk 0:00:34.8]} 31. Ra1 {[%clk 0:00:48]} 31... Be6 {[%clk 0:00:29.6]} 32. Nd2
{[%clk 0:00:30.6]} 32... Rd8 {[%clk 0:00:29.1]} 33. Ne4 {[%clk 0:00:30.3]} 33...
Rd4 {[%clk 0:00:28.7]} 34. Nd2 {[%clk 0:00:17.3]} 34... Bf7 {[%clk 0:00:24.1]}
35. Re2 {[%clk 0:00:14.6]} 35... Qd6 {[%clk 0:00:20]} 36. Rxa3 {[%clk
0:00:11.7]} 36... Rxa3 {[%clk 0:00:19.5]} 37. Qxa3 {[%clk 0:00:11.4]} 37... Rxd2
{[%clk 0:00:20]} 38. Rxd2 {[%clk 0:00:11.7]} 38... Qxd2 {[%clk 0:00:20.9]} 39.
Qxc5 {[%clk 0:00:12]} 39... Qc1+ {[%clk 0:00:20.3]} 40. Kh2 {[%clk 0:00:12.5]}
40... Qf4+ {[%clk 0:00:20.6]} 41. Kg1 {[%clk 0:00:11.8]} 41... Qxc4 {[%clk
0:00:20.8]} 42. Qb6 {[%clk 0:00:07.8]} 42... Qc1+ {[%clk 0:00:20.2]} 43. Kh2
{[%clk 0:00:07.4]} 43... Qf4+ {[%clk 0:00:20.7]} 44. Kg1 {[%clk 0:00:07.5]}
44... Qe5 {[%clk 0:00:14.7]} 45. Qc6 {[%clk 0:00:05.6]} 45... Qe1+ {[%clk
0:00:14.7]} 46. Kh2 {[%clk 0:00:06.1]} 46... Qe5+ {[%clk 0:00:14.7]} 47. Kg1
{[%clk 0:00:05.3]} 47... Bd5 {[%clk 0:00:14.4]} 48. Qd7+ {[%clk 0:00:03.5]}
48... Kh6 {[%clk 0:00:14.6]} 0-1

[Event "Late-Titled-Tuesday-Blitz-February-27-2024"]
[Site "Chess.com"]
[Date "2024.02.27"]
[Round "7"]
[White "MrKGG1"]
[Black "elchacal664"]
[Result "1-0"]
[WhiteElo "2587"]
[BlackElo "2428"]
[TimeControl "180+1"]
[EndTime "15:17:05 PST"]
[Termination "MrKGG1 won on time"]

1. Nf3 {[%clk 0:03:00.7]} 1... Nf6 {[%clk 0:02:36.9]} 2. c4 {[%clk 0:02:49.7]}
2... g6 {[%clk 0:02:35.9]} 3. Nc3 {[%clk 0:02:48.3]} 3... Bg7 {[%clk 0:02:36.1]}
4. g3 {[%clk 0:02:47.3]} 4... d6 {[%clk 0:02:36.4]} 5. d4 {[%clk 0:02:47]} 5...
O-O {[%clk 0:02:37.1]} 6. Bg2 {[%clk 0:02:47.4]} 6... c6 {[%clk 0:02:37.5]} 7.
O-O {[%clk 0:02:47]} 7... Qa5 {[%clk 0:02:38.1]} 8. Bd2 {[%clk 0:02:39]} 8...
Qh5 {[%clk 0:02:34.8]} 9. h4 {[%clk 0:02:27.7]} 9... Bg4 {[%clk 0:02:29.9]} 10.
Nh2 {[%clk 0:02:21.3]} 10... Bc8 {[%clk 0:02:24]} 11. e4 {[%clk 0:02:16.6]}
11... Qxd1 {[%clk 0:02:08.5]} 12. Raxd1 {[%clk 0:02:17.5]} 12... Na6 {[%clk
0:02:04.1]} 13. Be3 {[%clk 0:01:53.8]} 13... Ng4 {[%clk 0:01:59.4]} 14. Nxg4
{[%clk 0:01:52]} 14... Bxg4 {[%clk 0:02:00.3]} 15. f3 {[%clk 0:01:51.7]} 15...
Be6 {[%clk 0:01:57.5]} 16. b3 {[%clk 0:01:46.5]} 16... c5 {[%clk 0:01:54.6]} 17.
Ne2 {[%clk 0:01:41.7]} 17... cxd4 {[%clk 0:01:51.8]} 18. Nxd4 {[%clk 0:01:42.6]}
18... Bd7 {[%clk 0:01:49]} 19. Rd2 {[%clk 0:01:40.4]} 19... Nc5 {[%clk
0:01:46.6]} 20. Rfd1 {[%clk 0:01:39]} 20... a5 {[%clk 0:01:45.2]} 21. Ne2 {[%clk
0:01:26.1]} 21... Bc6 {[%clk 0:01:38.6]} 22. Nd4 {[%clk 0:01:12.2]} 22... Bd7
{[%clk 0:01:38.1]} 23. Bf1 {[%clk 0:01:00.6]} 23... Rfc8 {[%clk 0:01:35.3]} 24.
Nb5 {[%clk 0:00:45.1]} 24... Bxb5 {[%clk 0:01:24.6]} 25. cxb5 {[%clk 0:00:46]}
25... b6 {[%clk 0:01:24.3]} 26. Bc4 {[%clk 0:00:45]} 26... Bc3 {[%clk
0:01:02.8]} 27. Re2 {[%clk 0:00:42.6]} 27... a4 {[%clk 0:00:59.9]} 28. Bd5
{[%clk 0:00:39.4]} 28... Ra5 {[%clk 0:00:48.4]} 29. Rc2 {[%clk 0:00:36.5]} 29...
Bb4 {[%clk 0:00:38.3]} 30. Rc4 {[%clk 0:00:33.7]} 30... axb3 {[%clk 0:00:35.5]}
31. Rxb4 {[%clk 0:00:31.9]} 31... bxa2 {[%clk 0:00:35.7]} 32. Ra1 {[%clk
0:00:30.7]} 32... Ra3 {[%clk 0:00:30.1]} 33. Bxc5 {[%clk 0:00:28.8]} 33... Rxc5
{[%clk 0:00:20.9]} 34. Rb3 {[%clk 0:00:24.3]} 34... Rxb3 {[%clk 0:00:16]} 35.
Bxb3 {[%clk 0:00:25.2]} 35... Rc3 {[%clk 0:00:14.3]} 36. Bxa2 {[%clk 0:00:21]}
36... Rxf3 {[%clk 0:00:14.6]} 37. Kg2 {[%clk 0:00:20.5]} 37... Re3 {[%clk
0:00:14.9]} 38. Bd5 {[%clk 0:00:20.6]} 38... Rb3 {[%clk 0:00:14.4]} 39. Bc6
{[%clk 0:00:20.6]} 39... Rb2+ {[%clk 0:00:14.4]} 40. Kh3 {[%clk 0:00:21.1]}
40... e6 {[%clk 0:00:14.8]} 41. Ra6 {[%clk 0:00:19.8]} 41... d5 {[%clk
0:00:14.7]} 42. exd5 {[%clk 0:00:19]} 42... exd5 {[%clk 0:00:15.6]} 43. Rxb6
{[%clk 0:00:19.5]} 43... d4 {[%clk 0:00:15.7]} 44. Rb8+ {[%clk 0:00:19.8]} 44...
Kg7 {[%clk 0:00:15.9]} 45. b6 {[%clk 0:00:18]} 45... d3 {[%clk 0:00:16.1]} 46.
b7 {[%clk 0:00:18.6]} 46... d2 {[%clk 0:00:16.4]} 47. Rd8 {[%clk 0:00:19.1]}
47... Rc2 {[%clk 0:00:14.6]} 48. Rxd2 {[%clk 0:00:18.1]} 48... Rxd2 {[%clk
0:00:12]} 49. b8=Q {[%clk 0:00:18.2]} 49... h6 {[%clk 0:00:11]} 50. Qe5+ {[%clk
0:00:18.1]} 50... Kg8 {[%clk 0:00:10.7]} 51. Bd5 {[%clk 0:00:17.9]} 1-0

[Event "Late-Titled-Tuesday-Blitz-February-27-2024"]
[Site "Chess.com"]
[Date "2024.02.27"]
[Round "7"]
[White "pirulillo"]
[Black "JackRodgers"]
[Result "1/2-1/2"]
[WhiteElo "2252"]
[BlackElo "2513"]
[TimeControl "180+1"]
[EndTime "15:17:09 PST"]
[Termination "Game drawn by repetition"]

1. e4 {[%clk 0:03:00.9]} 1... c5 {[%clk 0:02:59.5]} 2. Nf3 {[%clk 0:02:59]} 2...
g6 {[%clk 0:02:59.8]} 3. d4 {[%clk 0:02:55.5]} 3... cxd4 {[%clk 0:03:00.7]} 4.
Nxd4 {[%clk 0:02:55.4]} 4... Nc6 {[%clk 0:03:00.4]} 5. Nc3 {[%clk 0:02:55.8]}
5... Bg7 {[%clk 0:03:00.2]} 6. Nb3 {[%clk 0:02:56.4]} 6... Nf6 {[%clk
0:02:59.6]} 7. Be2 {[%clk 0:02:55.7]} 7... O-O {[%clk 0:02:59.9]} 8. O-O {[%clk
0:02:56.3]} 8... d6 {[%clk 0:03:00.3]} 9. Bg5 {[%clk 0:02:56.2]} 9... Bd7 {[%clk
0:02:58.7]} 10. f4 {[%clk 0:02:54.7]} 10... a5 {[%clk 0:02:55.1]} 11. a4 {[%clk
0:02:53.6]} 11... Rc8 {[%clk 0:02:53.1]} 12. Bf3 {[%clk 0:02:52.4]} 12... h6
{[%clk 0:02:51.7]} 13. Bh4 {[%clk 0:02:51.8]} 13... Nb4 {[%clk 0:02:46.5]} 14.
Bf2 {[%clk 0:02:42.9]} 14... Qc7 {[%clk 0:02:44.4]} 15. Nd4 {[%clk 0:02:31.8]}
15... Ng4 {[%clk 0:02:29]} 16. Bxg4 {[%clk 0:02:22.2]} 16... Bxg4 {[%clk
0:02:29.9]} 17. Qxg4 {[%clk 0:02:21.6]} 17... Bxd4 {[%clk 0:02:28.7]} 18. Bxd4
{[%clk 0:02:22.5]} 18... Nxc2 {[%clk 0:02:29]} 19. Nb5 {[%clk 0:02:11]} 19...
Qc4 {[%clk 0:02:19.1]} 20. Rad1 {[%clk 0:02:03.9]} 20... Qxa4 {[%clk 0:02:16]}
21. Nc3 {[%clk 0:01:19.4]} 21... Qc4 {[%clk 0:02:00.7]} 22. Bf2 {[%clk
0:01:13.5]} 22... Nb4 {[%clk 0:01:56.8]} 23. f5 {[%clk 0:01:10.2]} 23... g5
{[%clk 0:01:53.3]} 24. h4 {[%clk 0:00:58.4]} 24... f6 {[%clk 0:01:53]} 25. hxg5
{[%clk 0:00:57.3]} 25... hxg5 {[%clk 0:01:53.8]} 26. Qh5 {[%clk 0:00:55.4]}
26... Qf7 {[%clk 0:01:53.7]} 27. Qxf7+ {[%clk 0:00:53.3]} 27... Kxf7 {[%clk
0:01:54.6]} 28. Ra1 {[%clk 0:00:50]} 28... Nd3 {[%clk 0:01:45.4]} 29. Rxa5
{[%clk 0:00:46.5]} 29... Nxb2 {[%clk 0:01:45.1]} 30. Nd5 {[%clk 0:00:46.9]}
30... Rc2 {[%clk 0:01:32.6]} 31. Rb5 {[%clk 0:00:45.6]} 31... Rb8 {[%clk
0:01:22.3]} 32. Rb1 {[%clk 0:00:43.9]} 32... Nd3 {[%clk 0:01:19.7]} 33. Bd4
{[%clk 0:00:42.1]} 33... Rc1+ {[%clk 0:01:12.7]} 34. Rxc1 {[%clk 0:00:41.2]}
34... Nxc1 {[%clk 0:01:13.6]} 35. Ba7 {[%clk 0:00:38.7]} 35... Re8 {[%clk
0:01:12.3]} 36. Rxb7 {[%clk 0:00:39]} 36... Nd3 {[%clk 0:01:09.4]} 37. Rb3
{[%clk 0:00:27.5]} 37... Ne5 {[%clk 0:01:08.3]} 38. Bd4 {[%clk 0:00:27.6]} 38...
Ng4 {[%clk 0:01:06.7]} 39. Rb7 {[%clk 0:00:26.4]} 39... Kf8 {[%clk 0:01:03.8]}
40. Ne3 {[%clk 0:00:25.7]} 40... Nh6 {[%clk 0:00:59.8]} 41. Ba7 {[%clk
0:00:21.8]} 41... Kf7 {[%clk 0:00:58.9]} 42. Rb8 {[%clk 0:00:22.1]} 42... Rxb8
{[%clk 0:00:56.8]} 43. Bxb8 {[%clk 0:00:23]} 43... Ke8 {[%clk 0:00:57.7]} 44.
Kf2 {[%clk 0:00:23]} 44... Kd7 {[%clk 0:00:58.2]} 45. Ba7 {[%clk 0:00:22.8]}
45... Nf7 {[%clk 0:00:57.5]} 46. Bd4 {[%clk 0:00:23.2]} 46... Nd8 {[%clk
0:00:57.8]} 47. Nd5 {[%clk 0:00:22.7]} 47... Nc6 {[%clk 0:00:57.2]} 48. Ke3
{[%clk 0:00:22.8]} 48... Na5 {[%clk 0:00:55.1]} 49. g4 {[%clk 0:00:22.8]} 49...
Nc6 {[%clk 0:00:51.9]} 50. Kd3 {[%clk 0:00:22.7]} 50... Nd8 {[%clk 0:00:51.3]}
51. Bb6 {[%clk 0:00:20]} 51... Nf7 {[%clk 0:00:51.9]} 52. Bd4 {[%clk 0:00:18.8]}
52... Nh6 {[%clk 0:00:52]} 53. Ne3 {[%clk 0:00:18.1]} 53... Nf7 {[%clk
0:00:49.8]} 54. Kc4 {[%clk 0:00:18.2]} 54... Kc6 {[%clk 0:00:49.4]} 55. Bc3
{[%clk 0:00:17.2]} 55... Kd7 {[%clk 0:00:47.8]} 56. Nc2 {[%clk 0:00:17.8]} 56...
Nh6 {[%clk 0:00:47.4]} 57. Ne3 {[%clk 0:00:18.3]} 57... Nf7 {[%clk 0:00:47.8]}
58. Kb5 {[%clk 0:00:18.7]} 58... Kc7 {[%clk 0:00:45]} 59. Ba5+ {[%clk
0:00:17.7]} 59... Kd7 {[%clk 0:00:45.2]} 60. Kb6 {[%clk 0:00:18.1]} 60... Ne5
{[%clk 0:00:44.4]} 61. Bc3 {[%clk 0:00:18.5]} 61... Nf7 {[%clk 0:00:42]} 62. Kb7
{[%clk 0:00:18.8]} 62... Nd8+ {[%clk 0:00:41.9]} 63. Kb6 {[%clk 0:00:17.9]}
63... Nf7 {[%clk 0:00:42.6]} 64. Nd5 {[%clk 0:00:17.8]} 64... Nh6 {[%clk
0:00:41.1]} 65. Ne3 {[%clk 0:00:15.6]} 65... Nf7 {[%clk 0:00:41.6]} 1/2-1/2

[Event "Late-Titled-Tuesday-Blitz-February-27-2024"]
[Site "Chess.com"]
[Date "2024.02.27"]
[Round "7"]
[White "GMVignirVatnar"]
[Black "Inepton_Fermion"]
[Result "1-0"]
[WhiteElo "2730"]
[BlackElo "2458"]
[TimeControl "180+1"]
[EndTime "15:17:16 PST"]
[Termination "GMVignirVatnar won by checkmate"]

1. d4 {[%clk 0:03:00.9]} 1... d5 {[%clk 0:02:57.6]} 2. c4 {[%clk 0:03:00.8]}
2... dxc4 {[%clk 0:02:57.5]} 3. e3 {[%clk 0:03:00.4]} 3... e5 {[%clk 0:02:56.9]}
4. Bxc4 {[%clk 0:02:59.9]} 4... exd4 {[%clk 0:02:56.2]} 5. exd4 {[%clk
0:03:00.8]} 5... Bd6 {[%clk 0:02:56.3]} 6. Nf3 {[%clk 0:03:01.1]} 6... Nf6
{[%clk 0:02:56.6]} 7. Qe2+ {[%clk 0:03:01.7]} 7... Qe7 {[%clk 0:02:56.5]} 8.
Qxe7+ {[%clk 0:03:01.9]} 8... Bxe7 {[%clk 0:02:56.2]} 9. Bf4 {[%clk 0:03:01.8]}
9... Bd6 {[%clk 0:02:54.2]} 10. Ne5 {[%clk 0:02:55.8]} 10... Be6 {[%clk
0:02:47.8]} 11. Bxe6 {[%clk 0:02:54.3]} 11... fxe6 {[%clk 0:02:48.7]} 12. Nc3
{[%clk 0:02:54.5]} 12... a6 {[%clk 0:02:40.8]} 13. O-O {[%clk 0:02:53.5]} 13...
Nbd7 {[%clk 0:02:39.1]} 14. Rfe1 {[%clk 0:02:52]} 14... Bxe5 {[%clk 0:02:34]}
15. dxe5 {[%clk 0:02:44]} 15... Ng8 {[%clk 0:02:22.1]} 16. Rad1 {[%clk
0:02:28.9]} 16... Ne7 {[%clk 0:02:20.6]} 17. Bg5 {[%clk 0:02:24]} 17... Nb6
{[%clk 0:02:13.9]} 18. Ne4 {[%clk 0:02:21.3]} 18... h6 {[%clk 0:01:55.8]} 19.
Bd2 {[%clk 0:02:12.5]} 19... Rb8 {[%clk 0:01:29]} 20. b3 {[%clk 0:02:03.2]}
20... Ned5 {[%clk 0:01:15.6]} 21. Nc5 {[%clk 0:01:59.6]} 21... Ke7 {[%clk
0:01:12.5]} 22. f4 {[%clk 0:01:53.5]} 22... Nd7 {[%clk 0:01:00]} 23. Ne4 {[%clk
0:01:49.1]} 23... Rhf8 {[%clk 0:00:53.1]} 24. g3 {[%clk 0:01:48.7]} 24... c5
{[%clk 0:00:35.3]} 25. Nd6 {[%clk 0:01:40.8]} 25... b5 {[%clk 0:00:35.2]} 26.
Bc1 {[%clk 0:01:31.8]} 26... Rb6 {[%clk 0:00:30.2]} 27. Ne4 {[%clk 0:01:27.8]}
27... Rc6 {[%clk 0:00:29.7]} 28. Ba3 {[%clk 0:01:22.5]} 28... b4 {[%clk
0:00:26.8]} 29. Bb2 {[%clk 0:01:20.5]} 29... c4 {[%clk 0:00:26.7]} 30. bxc4
{[%clk 0:01:18.5]} 30... Rxc4 {[%clk 0:00:26.8]} 31. Rd2 {[%clk 0:01:18.3]}
31... Rfc8 {[%clk 0:00:16.9]} 32. Nd6 {[%clk 0:01:17.1]} 32... Rc2 {[%clk
0:00:15.7]} 33. Nxc8+ {[%clk 0:01:16.9]} 33... Rxc8 {[%clk 0:00:16.6]} 34. f5
{[%clk 0:01:16.8]} 34... Nc5 {[%clk 0:00:13.1]} 35. Rc2 {[%clk 0:00:55.2]} 35...
Nb6 {[%clk 0:00:09.9]} 36. Bd4 {[%clk 0:00:54.2]} 36... Nca4 {[%clk 0:00:04.5]}
37. f6+ {[%clk 0:00:54.3]} 37... gxf6 {[%clk 0:00:04.1]} 38. exf6+ {[%clk
0:00:55.2]} 38... Kf7 {[%clk 0:00:04.4]} 39. Rxc8 {[%clk 0:00:54.8]} 39... Nxc8
{[%clk 0:00:04.5]} 40. Rc1 {[%clk 0:00:55.4]} 40... Nd6 {[%clk 0:00:02.3]} 41.
Rc7+ {[%clk 0:00:55.8]} 41... Kg6 {[%clk 0:00:02.7]} 42. Rg7+ {[%clk 0:00:51.6]}
42... Kf5 {[%clk 0:00:03]} 43. f7 {[%clk 0:00:52.2]} 43... Nxf7 {[%clk
0:00:02.3]} 44. Rxf7+ {[%clk 0:00:53.1]} 44... Ke4 {[%clk 0:00:02.4]} 45. Rf4+
{[%clk 0:00:50]} 45... Kd5 {[%clk 0:00:02.4]} 46. Bg7 {[%clk 0:00:47.7]} 46...
e5 {[%clk 0:00:02.8]} 47. Rxb4 {[%clk 0:00:47]} 47... Nc3 {[%clk 0:00:02.6]} 48.
Bxh6 {[%clk 0:00:46.7]} 48... Nxa2 {[%clk 0:00:02.6]} 49. Ra4 {[%clk 0:00:47]}
49... Nc3 {[%clk 0:00:02]} 50. Rxa6 {[%clk 0:00:47]} 50... e4 {[%clk 0:00:02.9]}
51. Kf2 {[%clk 0:00:46.6]} 51... Nd1+ {[%clk 0:00:02.7]} 52. Ke2 {[%clk
0:00:46.6]} 52... Nb2 {[%clk 0:00:03.6]} 53. Bg7 {[%clk 0:00:45.1]} 53... Nc4
{[%clk 0:00:04.5]} 54. h4 {[%clk 0:00:44]} 54... Nd6 {[%clk 0:00:04.6]} 55.
Rxd6+ {[%clk 0:00:42.7]} 55... Kxd6 {[%clk 0:00:04.7]} 56. Ke3 {[%clk
0:00:43.3]} 56... Ke6 {[%clk 0:00:05.6]} 57. Kxe4 {[%clk 0:00:42.8]} 57... Kf7
{[%clk 0:00:06.5]} 58. Bd4 {[%clk 0:00:42.9]} 58... Kg6 {[%clk 0:00:07.4]} 59.
Kf4 {[%clk 0:00:42.9]} 59... Kh5 {[%clk 0:00:08.3]} 60. Kf5 {[%clk 0:00:42]}
60... Kh6 {[%clk 0:00:08.6]} 61. Kf6 {[%clk 0:00:42.6]} 61... Kh5 {[%clk
0:00:09.5]} 62. Kg7 {[%clk 0:00:39]} 62... Kg4 {[%clk 0:00:09.7]} 63. Kg6 {[%clk
0:00:39.6]} 63... Kxg3 {[%clk 0:00:10.1]} 64. h5 {[%clk 0:00:40.4]} 64... Kg4
{[%clk 0:00:10.5]} 65. h6 {[%clk 0:00:41.3]} 65... Kf4 {[%clk 0:00:11.3]} 66. h7
{[%clk 0:00:42]} 66... Ke4 {[%clk 0:00:12.2]} 67. h8=Q {[%clk 0:00:42.8]} 67...
Kd5 {[%clk 0:00:13.1]} 68. Qe5+ {[%clk 0:00:43]} 68... Kc4 {[%clk 0:00:14]} 69.
Qc5+ {[%clk 0:00:43.6]} 69... Kd3 {[%clk 0:00:14.9]} 70. Be3 {[%clk 0:00:44]}
70... Ke4 {[%clk 0:00:15.4]} 71. Qd4+ {[%clk 0:00:43.4]} 71... Kf3 {[%clk
0:00:16.3]} 72. Qf4+ {[%clk 0:00:43.4]} 72... Ke2 {[%clk 0:00:17.2]} 73. Qf2+
{[%clk 0:00:43.6]} 73... Kd3 {[%clk 0:00:18.1]} 74. Kf5 {[%clk 0:00:43.8]} 74...
Kc4 {[%clk 0:00:18.3]} 75. Ke5 {[%clk 0:00:43.1]} 75... Kb5 {[%clk 0:00:19.2]}
76. Kd6 {[%clk 0:00:42.9]} 76... Ka6 {[%clk 0:00:19.6]} 77. Qb2 {[%clk
0:00:41.7]} 77... Ka5 {[%clk 0:00:19.7]} 78. Kc5 {[%clk 0:00:41.4]} 78... Ka4
{[%clk 0:00:20.6]} 79. Qb4# {[%clk 0:00:41.3]} 1-0

[Event "Late-Titled-Tuesday-Blitz-February-27-2024"]
[Site "Chess.com"]
[Date "2024.02.27"]
[Round "7"]
[White "KuzubovYuriy"]
[Black "nihalsarin"]
[Result "0-1"]
[WhiteElo "2958"]
[BlackElo "3197"]
[TimeControl "180+1"]
[EndTime "15:17:18 PST"]
[Termination "nihalsarin won by resignation"]

1. d4 {[%clk 0:03:00.9]} 1... Nf6 {[%clk 0:02:58]} 2. c4 {[%clk 0:03:00.9]} 2...
g6 {[%clk 0:02:58.4]} 3. g3 {[%clk 0:02:59.3]} 3... Bg7 {[%clk 0:02:54.3]} 4.
Bg2 {[%clk 0:02:58.2]} 4... d5 {[%clk 0:02:55]} 5. cxd5 {[%clk 0:02:57.4]} 5...
Nxd5 {[%clk 0:02:55.9]} 6. Nf3 {[%clk 0:02:56.3]} 6... O-O {[%clk 0:02:55.6]} 7.
O-O {[%clk 0:02:56.3]} 7... Nb6 {[%clk 0:02:53.4]} 8. Nc3 {[%clk 0:02:56]} 8...
Nc6 {[%clk 0:02:52.1]} 9. e3 {[%clk 0:02:56.3]} 9... e5 {[%clk 0:02:41.2]} 10.
d5 {[%clk 0:02:52.9]} 10... e4 {[%clk 0:02:41.9]} 11. dxc6 {[%clk 0:02:48]}
11... exf3 {[%clk 0:02:42.1]} 12. Bxf3 {[%clk 0:02:44.8]} 12... bxc6 {[%clk
0:02:40.4]} 13. Bxc6 {[%clk 0:02:43]} 13... Rb8 {[%clk 0:02:30.5]} 14. Qc2
{[%clk 0:02:37]} 14... Bh3 {[%clk 0:02:19.8]} 15. Rd1 {[%clk 0:02:31.9]} 15...
Qf6 {[%clk 0:02:19.3]} 16. Bg2 {[%clk 0:02:28]} 16... Bxg2 {[%clk 0:02:19.1]}
17. Kxg2 {[%clk 0:02:28.9]} 17... Rfd8 {[%clk 0:02:17.9]} 18. Rb1 {[%clk
0:01:59.5]} 18... Qc6+ {[%clk 0:02:12.3]} 19. Kg1 {[%clk 0:01:54.8]} 19... Bxc3
{[%clk 0:01:49.1]} 20. bxc3 {[%clk 0:01:50.5]} 20... Qf3 {[%clk 0:01:49]} 21.
Ba3 {[%clk 0:01:18.2]} 21... Nc4 {[%clk 0:01:46.5]} 22. Rxb8 {[%clk 0:01:09.6]}
22... Rxb8 {[%clk 0:01:47.4]} 23. Bc1 {[%clk 0:01:04.7]} 23... h5 {[%clk
0:01:15.2]} 24. Rd4 {[%clk 0:00:53.1]} 24... Ne5 {[%clk 0:00:53]} 25. h3 {[%clk
0:00:45.6]} 25... Qc6 {[%clk 0:00:46.9]} 26. Rd1 {[%clk 0:00:35.7]} 26... Nf3+
{[%clk 0:00:40.6]} 27. Kf1 {[%clk 0:00:36]} 27... Ng5 {[%clk 0:00:38.8]} 28. e4
{[%clk 0:00:34.5]} 28... Nxe4 {[%clk 0:00:36.3]} 29. Bf4 {[%clk 0:00:31.5]}
29... Nxc3 {[%clk 0:00:28.5]} 30. Kg1 {[%clk 0:00:30.9]} 30... Qf3 {[%clk
0:00:29]} 31. Re1 {[%clk 0:00:29.7]} 31... Rd8 {[%clk 0:00:18.4]} 32. Be3 {[%clk
0:00:29.2]} 32... Ne4 {[%clk 0:00:11]} 33. Qxc7 {[%clk 0:00:27.1]} 33... Rd6
{[%clk 0:00:09.4]} 34. Qxa7 {[%clk 0:00:23.5]} 34... Nxg3 {[%clk 0:00:06.6]} 35.
fxg3 {[%clk 0:00:11]} 35... Qxg3+ {[%clk 0:00:07.5]} 36. Kf1 {[%clk 0:00:11.4]}
36... Qxh3+ {[%clk 0:00:08.2]} 37. Ke2 {[%clk 0:00:09.9]} 37... Qg4+ {[%clk
0:00:06.2]} 38. Kf1 {[%clk 0:00:09.5]} 38... Qh3+ {[%clk 0:00:06.7]} 39. Ke2
{[%clk 0:00:09.4]} 39... Qg2+ {[%clk 0:00:07.4]} 40. Bf2 {[%clk 0:00:09.6]}
40... Re6+ {[%clk 0:00:08]} 41. Kd2 {[%clk 0:00:09.2]} 41... Qd5+ {[%clk
0:00:08.5]} 42. Qd4 {[%clk 0:00:07.5]} 42... Qxa2+ {[%clk 0:00:08.7]} 43. Kd3
{[%clk 0:00:06.8]} 43... Qb3+ {[%clk 0:00:08.2]} 44. Kd2 {[%clk 0:00:06.8]}
44... Qa2+ {[%clk 0:00:08.5]} 45. Kd3 {[%clk 0:00:07.2]} 45... Qa6+ {[%clk
0:00:09.1]} 46. Kd2 {[%clk 0:00:06.7]} 46... Qa5+ {[%clk 0:00:07.1]} 47. Kd3
{[%clk 0:00:06.1]} 47... Rxe1 {[%clk 0:00:06.6]} 48. Bxe1 {[%clk 0:00:06.1]}
48... Qxe1 {[%clk 0:00:07.5]} 49. Qd8+ {[%clk 0:00:06.2]} 49... Kh7 {[%clk
0:00:08.1]} 50. Qf6 {[%clk 0:00:06.2]} 50... Qe6 {[%clk 0:00:09]} 51. Qh4 {[%clk
0:00:06.3]} 51... Kg7 {[%clk 0:00:09.2]} 52. Kd2 {[%clk 0:00:06.5]} 52... Qf6
{[%clk 0:00:10.1]} 53. Qh2 {[%clk 0:00:06.3]} 53... Qb2+ {[%clk 0:00:09.9]} 54.
Ke3 {[%clk 0:00:06.1]} 54... Qxh2 {[%clk 0:00:10.8]} 0-1